[Event "SWE-ch U16 2019"]
[Site "Eskilstuna"]
[Date "2019.07.08"]
[Round "1.3"]
[White "Muntean, Victor"]
[Black "Nilsson, Oliver"]
[Result "1-0"]
[ECO "C54"]
[WhiteElo "1971"]
[BlackElo "1574"]
[Annotator "NA"]
[PlyCount "42"]
[EventDate "2019.07.06"]
[EventType "tourn"]
[EventCountry "SWE"]
[SourceTitle "playchess.com"]
[Source "ChessBase"]
[SourceQuality "1"]
[TimeControl "40/5400+30:1800+30"]

1. e4 {[%emt 0:00:00]} e5 {[%emt 0:00:00]} 2. Nf3 {[%emt 0:00:00]} Nc6 {[%emt 0:00:16]} 3. Bc4 {[%emt 0:00:06]} Bc5 {[%emt 0:00:13]} 4. c3 {[%emt 0:00:13]} Nf6 {[%emt 0:00:14]} 5. d3 {[%emt 0:00:29]} d5 {[%emt 0:03:25]} 6. exd5 {[%emt 0:01:25]} Nxd5 {[%emt 0:00:09]} 7. Qb3 {[%emt 0:01:31]} Be6 {[%emt 0:00:41]} 8. Qxb7 {[%emt 0:00:37]} Na5 {[%emt 0:00:40]} 9. Qb5+ {[%emt 0:00:18]} c6 {[%emt 0:00:49]} 10. Qxc5 {[%emt 0:00:17]} Nxc4 {[%emt 0:00:18]} 11. Qxc6+ {[%emt 0:01:02]} Ke7 {[%emt 0:00:07]} 12. dxc4 {[%emt 0:00:49]} Rc8 {[%emt 0:00:49]} 13. Qb5 {[%emt 0:01:02]} Nf4 {[%emt 0:00:13]} 14. Bxf4 {[%emt 0:00:58]} exf4 {[%emt 0:00:18]} 15. Qg5+ {[%emt 0:02:15]} f6 {[%emt 0:01:00]} 16. Qxg7+ {[%emt 0:00:10]} Kd6 {[%emt 0:00:20]} 17. Na3 {[%emt 0:00:38]} Bxc4 {[%emt 0:02:10]} 18. Nxc4+ {[%emt 0:00:24]} Rxc4 {[%emt 0:00:07]} 19. O-O-O+ {[%emt 0:00:08]} Kc5 {[%emt 0:00:11]} 20. Rxd8 {[%emt 0:00:15]} Rxd8 {[%emt 0:00:09]} 21. Qc7+ {[%emt 0:00:12]} Kd5 {[%emt 0:00:12]} 1-0

[Event "SWE-ch U16 2019"]
[Site "Eskilstuna"]
[Date "2019.07.14"]
[Round "9.4"]
[White "Dingertz, Erik"]
[Black "Alfredsson, Daniel"]
[Result "1/2-1/2"]
[ECO "A11"]
[WhiteElo "1959"]
[BlackElo "1652"]
[Annotator "NA"]
[PlyCount "78"]
[EventDate "2019.07.06"]
[EventType "tourn"]
[EventCountry "SWE"]
[SourceTitle "playchess.com"]
[Source "ChessBase"]
[SourceQuality "1"]
[TimeControl "40/5400+30:1800+30"]

1. c4 {[%emt 0:00:00]} c6 {[%emt 0:00:00]} 2. g3 {[%emt 0:00:00]} d5 {[%emt 0:00:00]} 3. Bg2 {[%emt 0:00:00]} Bf5 {[%emt 0:01:00]} 4. Nf3 {[%emt 0:00:00]} Nf6 {[%emt 0:00:48]} 5. Qb3 {[%emt 0:00:10]} Qb6 {[%emt 0:01:03]} 6. O-O {[%emt 0:02:23]} e6 {[%emt 0:01:47]} 7. d3 {[%emt 0:01:54]} Nbd7 {[%emt 0:04:07]} 8. Nc3 {[%emt 0:01:56]} Nc5 {[%emt 0:03:12]} 9. Qxb6 {[%emt 0:02:45]} axb6 {[%emt 0:00:12]} 10. Nd4 {[%emt 0:01:17]} Bg6 {[%emt 0:00:46]} 11. cxd5 {[%emt 0:01:34]} exd5 {[%emt 0:01:14]} 12. Bf4 {[%emt 0:02:48]} Ne6 {[%emt 0:06:34]} 13. Nxe6 {[%emt 0:01:29]} fxe6 {[%emt 0:01:05]} 14. e4 {[%emt 0:00:24]} d4 {[%emt 0:16:45]} 15. Ne2 {[%emt 0:00:31]} c5 {[%emt 0:00:08]} 16. Bc7 {[%emt 0:05:53]} Ra6 {[%emt 0:02:27]} 17. Bh3 {[%emt 0:05:13]} Kd7 {[%emt 0:01:52]} 18. Be5 {[%emt 0:00:28]} Bd6 {[%emt 0:02:00]} 19. Bxd6 {[%emt 0:00:43]} Kxd6 {[%emt 0:00:15]} 20. f4 {[%emt 0:00:28]} Ke7 {[%emt 0:14:58]} 21. Nc1 {[%emt 0:09:25]} b5 {[%emt 0:03:33]} 22. Nb3 {[%emt 0:03:24]} b6 {[%emt 0:02:11]} 23. Nd2 {[%emt 0:01:12]} Bh5 {[%emt 0:08:53]} 24. Rfe1 {[%emt 0:06:15]} Rha8 {[%emt 0:01:28]} 25. a3 {[%emt 0:08:27]} b4 {[%emt 0:01:10]} 26. Nc4 {[%emt 0:02:57]} b5 {[%emt 0:00:34]} 27. Ne5 {[%emt 0:00:05]} bxa3 {[%emt 0:04:00]} 28. bxa3 {[%emt 0:00:13]} Rxa3 {[%emt 0:00:16]} 29. Rxa3 {[%emt 0:01:19]} Rxa3 {[%emt 0:00:17]} 30. Rc1 {[%emt 0:00:07]} Kd6 {[%emt 0:02:28]} 31. Rb1 {[%emt 0:04:40]} Be8 {[%emt 0:03:55]} 32. Nc4+ {[%emt 0:03:18]} bxc4 {[%emt 0:00:44]} 33. e5+ {[%emt 0:00:04]} Ke7 {[%emt 0:05:31]} 34. exf6+ {[%emt 0:00:25]} gxf6 {[%emt 0:01:24]} 35. dxc4 {[%emt 0:00:36]} Rc3 {[%emt 0:00:58]} 36. Bf1 {[%emt 0:02:15]} d3 {[%emt 0:04:25]} 37. Kf2 {[%emt 0:05:13]} Bg6 {[%emt 0:01:31]} 38. Ke3 {[%emt 0:00:02]} Rxc4 {[%emt 0:00:03]} 39. Rd1 Rd4 {[%emt 0:00:03]} 1/2-1/2